bitfinex-derivatives/quotes_SOLF0:USTF0_20250831
["timestamp","ask_amount","ask_price","bid_price","bid_amount"]
[1756600294295,7.77,204.04,203.96,4.49482788]
[1756600294495,7.77,204.04,203.97,4.49482788]
[1756600294694,7.77,204.04,203.98,4.49482788]
[1756600294889,7.77,204.04,203.99,4.49482788]
[1756600295089,7.77,204.04,203.95,7.25]
[1756600295090,7.77,204.01,203.91,7.25]
[1756600295296,7.77,204.01,203.92,4.49699179]
[1756600295297,2.40096885,203.99,203.92,4.49699179]
[1756600295594,7.77,203.98,203.93,4.49699179]
[1756600295795,2.40096885,203.99,203.94,4.49699179]
[1756600295996,7.77,203.98,203.95,4.49699179]
[1756600296194,7.77,203.98,203.96,4.49699179]
[1756600296395,7.77,203.98,203.87,7.25]
[1756600296596,2.40096885,203.94,203.88,4.50040153]
[1756600296797,7.77,203.93,203.89,4.50040153]
[1756600296992,7.77,203.93,203.83,128.17198149]
[1756600296993,7.77,203.93,203.9,4.50040153]
[1756600297296,7.77,203.93,203.83,131.33]
[1756600297497,7.77,203.93,203.83,7.25]
[1756600297998,2.40096885,203.91,203.83,7.25]
[1756600298196,7.24,203.9,203.83,7.25]
[1756600298495,2.40096885,203.91,203.77,7.79]
[1756600298496,7.24,203.86,203.77,7.79]
[1756600298698,2.40096885,203.87,203.77,7.79]
[1756600299295,47.62,203.89,203.77,7.79]
[1756600300591,92.34,203.89,203.77,7.79]
[1756600300900,124.3,203.89,203.77,7.79]
[1756600303197,7.24,203.88,203.77,7.79]
[1756600304501,131.44,203.88,203.77,7.79]
[1756600304803,131.44,203.88,203.71,4.09198149]
[1756600304804,3.75550425,203.85,203.72,7.79]
[1756600305002,7.24,203.84,203.72,7.79]
[1756600305607,7.24,203.84,203.73,7.79]
[1756600306302,7.24,203.88,203.73,7.79]
[1756600306502,7.24,203.95,203.8,3.75550425]
[1756600306707,131.62,203.95,203.81,7.79]
[1756600307702,7.24,203.92,203.81,7.79]
[1756600309011,7.24,203.92,203.76,7.79]
[1756600309711,3.75550425,203.89,203.76,7.79]
[1756600309913,7.24,203.88,203.76,7.79]
[1756600310312,66.94,203.88,203.76,7.79]
[1756600310704,7.24,203.88,203.76,7.79]
[1756600311313,7.24,203.88,203.77,7.79]
[1756600319816,7.24,203.93,203.81,7.79]
[1756600321624,7.24,203.89,203.76,7.79]
[1756600321828,7.24,203.87,203.76,7.79]
[1756600323528,58.08,203.88,203.71,7.79]
[1756600323529,7.24,203.85,203.71,7.79]
[1756600324327,7.24,203.85,203.71,3.75550425]
[1756600324625,20.36,203.88,203.75,3.75550425]
[1756600324818,10.99550425,203.89,203.76,7.79]
[1756600325024,64.92,203.89,203.76,7.79]
[1756600326225,68.67550425,203.89,203.76,7.79]
[1756600327524,10.99550425,203.89,203.76,7.79]
[1756600327724,7.24,203.89,203.76,7.79]
[1756600331330,7.24,203.89,203.8,7.34]
[1756600331530,8.01,203.95,203.8,7.34]
[1756600331733,8.01,203.95,203.84,7.34]
[1756600333035,11.76550425,203.95,203.79,7.34]
[1756600335329,8.01,203.95,203.8,7.34]
[1756600335529,112.38,203.94,203.8,7.34]
[1756600337339,112.38,203.94,203.8,11.43198149]
[1756600337738,112.38,203.94,203.81,7.34]
[1756600337939,133.19,203.95,203.81,7.34]
[1756600338336,329.44,203.96,203.84,7.34]
[1756600338541,329.44,203.96,203.86,7.34]
[1756600338840,8.01,203.99,203.86,7.34]
[1756600340629,8.01,203.99,203.87,4.09198149]
[1756600340829,8.01,203.99,203.88,7.34]
[1756600341139,8.01,203.99,203.9,7.34]
[1756600342833,8.01,204.04,203.9,11.09550425]
[1756600344936,8.01,204.04,203.91,7.34]
[1756600346336,337.67,204.08,203.95,7.34]
[1756600349732,8.01,204.08,203.95,7.34]
[1756600350040,8.01,204.08,203.89,20.75597533]
[1756600350041,8.01,204.08,203.98,7.34]
[1756600351134,10.28,204.13,203.98,7.34]
[1756600351437,8.01,204.12,203.98,7.34]
[1756600353437,8.01,204.12,204.01,3.75550425]
[1756600353742,8.01,204.12,204.02,7.34]
[1756600359844,8.01,204.12,203.9,89.56359761]
[1756600359845,8.01,204.12,203.96,11.03550425]
[1756600360044,63.08,204.14,203.96,11.03550425]
[1756600360648,7.94,204.11,203.96,3.75550425]
[1756600360847,7.94,204.15,204.06,3.75550425]
[1756600361048,7.94,204.15,204.05,7.28]
[1756600361049,7.94,204.15,204.07,3.75550425]
[1756600361250,22.97110823,204.16,204.07,3.75550425]
[1756600361452,22.97110823,204.16,204.08,7.28]
[1756600362245,7.94,204.15,203.96,7.28]
[1756600362446,7.94,204.15,204.05,11.03550425]
[1756600363043,7.94,204.15,204.01,11.44]
[1756600363044,22.97110823,204.16,204.1,3.75550425]
[1756600363646,22.97110823,204.16,204.09,3.75550425]
[1756600363851,22.97110823,204.16,204.1,7.28]
[1756600364853,22.97110823,204.16,204.07,7.28]
[1756600365054,22.97110823,204.16,204.1,3.75550425]
[1756600365249,22.97110823,204.16,204.1,7.28]
[1756600365454,22.97110823,204.16,204.1,11.03550425]
[1756600365655,22.97110823,204.16,204.1,7.28]
[1756600366655,22.97110823,204.16,204.08,3.75550425]
[1756600367154,7.94,204.15,204.08,3.75550425]
[1756600367359,7.94,204.15,204.05,7.28]
[1756600367560,7.94,204.15,204.04,3.75550425]
[1756600367754,7.94,204.15,204.04,11.03550425]
[1756600369057,22.97110823,204.16,203.99,336.6]
[1756600369255,7.94,204.15,204.02,7.28]
[1756600369659,7.94,204.15,204.05,3.75550425]
[1756600369955,7.94,204.15,204.05,11.03550425]
[1756600370555,22.97110823,204.16,203.99,336.6]
[1756600370757,7.94,204.15,204.02,3.75550425]
[1756600371256,7.94,204.15,203.99,336.6]
[1756600371560,22.97110823,204.16,203.99,340.35550425]
[1756600371761,7.94,204.15,203.99,340.35550425]
[1756600371962,7.94,204.14,203.99,336.6]
[1756600372162,7.94,204.15,204.01,3.75550425]
[1756600373157,46.67110823,204.16,203.99,336.6]
[1756600373359,46.67110823,204.16,203.99,7.28]
[1756600373360,11.69550425,204.15,203.99,7.28]
[1756600373863,7.94,204.15,203.99,7.28]
[1756600375864,7.94,204.15,203.97,3.75550425]
[1756600376065,7.94,204.11,203.97,3.75550425]
[1756600376466,7.94,204.11,203.94,7.28]
[1756600376767,3.75550425,204.08,203.94,7.28]
[1756600376963,7.94,204.06,203.94,7.28]
[1756600377166,7.94,204.06,203.93,3.75550425]
[1756600377469,7.94,204.06,203.94,4.5408652]
[1756600377767,7.94,204.06,203.95,4.54286255]
[1756600377967,7.94,204.06,203.96,4.54286255]
[1756600378169,7.94,204.06,203.97,4.54286255]
[1756600378367,7.94,204.06,203.98,4.54286255]
[1756600378564,7.94,204.06,203.9,7.28]
[1756600378565,7.94,204.06,203.99,4.54698983]
[1756600378757,7.94,204.06,203.9,7.28]
[1756600378963,7.94,204.06,203.91,4.54726684]
[1756600379165,7.94,204.06,203.92,4.54726684]
[1756600379368,7.94,204.06,203.93,4.54726684]
[1756600379561,7.94,204.03,203.94,4.54726684]
[1756600379761,7.94,204.03,203.95,4.54726684]
[1756600379965,7.94,204.03,203.96,4.54726684]
[1756600380168,7.94,204.03,203.86,7.28]
[1756600380370,3.75550425,204.0,203.87,4.55113239]
[1756600380566,3.75550425,203.98,203.88,4.55113239]
[1756600380760,7.94,203.96,203.89,9.0013396]
[1756600381070,7.94,203.96,203.9,4.55113239]
[1756600381271,7.94,203.96,203.91,4.55113239]
[1756600381473,7.94,203.96,203.82,7.28]
[1756600381769,7.94,203.96,203.83,9.01280108]
[1756600381971,7.94,203.96,203.84,9.01280108]
[1756600382162,7.94,203.96,203.85,9.01280108]
[1756600382368,7.94,203.92,203.86,9.01280108]
[1756600382572,7.94,203.92,203.87,4.55904651]
[1756600382869,7.94,203.92,203.68,5.45597533]
[1756600382870,9.61550425,203.89,203.72,7.28]
[1756600383071,1.46,203.84,203.73,4.45719572]
[1756600383266,1.46,203.84,203.74,4.45719572]
[1756600383468,1.46,203.84,203.75,4.45719572]
[1756600383673,1.46,203.84,203.76,4.45719572]
[1756600383874,1.46,203.84,203.77,4.45719572]
[1756600384073,1.46,203.84,203.78,4.45230085]
[1756600384371,24.06,203.85,203.79,4.45230085]
[1756600384572,24.06,203.85,203.72,7.28]
[1756600384770,24.06,203.85,203.73,4.44740931]
[1756600384971,26.4,203.86,203.74,4.44740931]
[1756600385167,26.4,203.86,203.75,4.44740931]
[1756600385366,26.4,203.86,203.76,4.44740931]
[1756600385572,1.46,203.86,203.77,4.44740931]
[1756600385769,1.46,203.9,203.79,7.28]
[1756600385974,1.46,203.95,203.81,7.28]
[1756600386173,1.46,203.95,203.82,4.44189323]
[1756600386374,1.46,203.95,203.81,7.28]
[1756600386574,1.46,203.95,203.82,4.43765432]
[1756600386774,1.46,203.95,203.83,4.43765432]
[1756600386974,1.46,203.95,203.84,4.43765432]
[1756600387174,1.46,203.95,203.85,4.43765432]
[1756600387376,1.46,203.95,203.81,7.28]
[1756600387573,1.46,203.95,203.82,4.43616524]
[1756600387773,1.46,203.95,203.83,4.43616524]
[1756600388071,1.46,203.95,203.85,7.88]
[1756600388274,1.46,203.95,203.86,4.43616524]
[1756600388474,1.46,203.95,203.87,4.43616524]
[1756600388677,1.46,203.95,203.88,4.43616524]
[1756600388871,1.47,204.0,203.89,12.31258221]
[1756600389082,1.47,204.0,203.9,4.43258221]
[1756600389275,1.47,204.0,203.89,7.88]
[1756600389475,1.47,204.0,203.9,4.43006738]
[1756600389675,1.47,204.0,203.89,7.88]
[1756600389876,1.47,204.0,203.9,4.43006591]
[1756600390080,1.47,204.0,203.89,7.88]
[1756600390273,458.28,204.01,203.91,7.88]
[1756600390579,329.34,204.01,203.92,4.42862601]
[1756600390775,329.34,204.01,203.91,7.88]
[1756600390972,329.34,204.01,203.92,4.42849912]
[1756600391174,329.34,204.01,203.91,7.88]
[1756600391472,330.81,204.01,203.91,7.88]
[1756600392572,1.47,204.0,203.83,3.75550425]
[1756600392777,1.47,203.99,203.84,4.42995168]
[1756600392979,1.47,203.99,203.85,12.30995168]
[1756600393283,1.47,203.99,203.86,4.42995168]
[1756600393470,1.47,203.99,203.87,4.42995168]
[1756600393673,1.47,203.99,203.88,4.42995168]
[1756600393874,1.47,203.99,203.85,7.88]
[1756600394178,1.47,203.99,203.86,4.42969944]
[1756600394379,1.47,203.99,203.87,4.42969944]
[1756600394580,1.47,203.99,203.88,4.42969944]
[1756600394779,1.47,203.99,203.85,7.88]
[1756600394975,1.47,203.99,203.86,4.42899254]
[1756600395173,1.47,203.99,203.85,7.88]
[1756600395174,1.47,203.99,203.87,4.42899254]
[1756600395375,1.47,203.99,203.88,4.42899254]
[1756600395679,1.47,203.99,203.85,7.88]
[1756600395880,1.47,203.99,203.86,4.42854516]
[1756600396079,1.47,203.99,203.88,7.88]
[1756600396275,1.47,203.99,203.89,4.42854516]
[1756600396477,1.47,203.99,203.88,7.88]
[1756600396876,3.75550425,204.0,203.88,7.88]
[1756600397077,1.47,203.99,203.88,7.88]
[1756600397680,0.85357927,203.97,203.88,7.88]
[1756600397879,128.44,203.96,203.88,7.88]
[1756600398079,0.85357927,203.97,203.88,7.88]
[1756600398274,1.47,203.99,203.88,7.88]
[1756600398482,3.75550425,204.0,203.9,7.88]
[1756600398483,128.4,204.0,203.9,7.88]
[1756600398873,329.34,204.01,203.9,7.88]
[1756600399074,457.72,204.01,203.91,4.42551909]
[1756600399279,457.72,204.01,203.89,7.88]
[1756600399479,457.72,204.01,203.91,7.88]
[1756600400079,1.47,204.06,203.93,7.88]
[1756600400279,128.3,204.04,203.94,4.42522998]
[1756600400481,128.3,204.04,203.93,7.88]
[1756600400682,128.3,204.04,203.94,4.42443673]
[1756600400983,128.3,204.04,203.93,7.88]
[1756600401186,1.47,204.03,203.93,7.88]
[1756600403582,128.3,204.04,203.87,3.75550425]
[1756600403784,1.47,204.0,203.88,12.30635491]
[1756600403984,1.47,204.0,203.89,4.42635491]
[1756600404180,1.47,204.0,203.9,4.42635491]
[1756600404484,1.47,204.0,203.88,7.88]
[1756600404686,1.47,204.0,203.89,4.42872346]
[1756600404980,1.47,204.0,203.9,4.42872346]
[1756600405185,1.47,204.0,203.88,7.88]
[1756600405486,1.47,204.0,203.89,4.42846887]
[1756600405686,1.47,204.0,203.88,7.88]
[1756600405887,1.47,204.0,203.89,4.42874705]
[1756600406092,1.47,204.0,203.88,7.88]
[1756600406390,1.47,204.0,203.89,4.42879505]
[1756600406586,1.47,204.0,203.88,7.88]
[1756600406884,1.47,204.0,203.78,4.04355825]
[1756600406885,3.75550425,203.91,203.77,7.88]
[1756600407088,3.75550425,203.86,203.68,7.88]
[1756600407282,3.75550425,203.82,203.68,7.88]
[1756600407478,64.98,203.81,203.68,7.88]
[1756600407684,3.75550425,203.82,203.68,7.88]
[1756600407986,65.3,203.81,203.68,7.88]
[1756600410282,3.75550425,203.78,203.59,7.88]
[1756600411081,41.02,203.77,203.59,7.88]
[1756600411285,3.75550425,203.78,203.59,7.88]
[1756600411492,13.24,203.77,203.59,7.88]
[1756600411689,3.75550425,203.78,203.59,7.88]
[1756600411890,3.75550425,203.78,203.58,146.0546068]
[1756600411891,5.16,203.77,203.63,7.88]
[1756600412095,3.75550425,203.82,203.63,7.88]
[1756600412394,3.75550425,203.82,203.67,7.88]
[1756600415889,3.75550425,203.78,203.67,7.88]
[1756600416987,3.75550425,203.78,203.61,7.88]
[1756600417395,3.52,203.77,203.61,7.88]
[1756600418185,14.72,203.91,203.61,7.88]
[1756600418389,5.50184735,203.95,203.63,7.62]
[1756600418586,3.75550425,203.87,203.67,7.62]
[1756600418786,3.75550425,203.87,203.71,7.62]
[1756600424192,3.75550425,203.83,203.62,7.62]
[1756600424394,3.75550425,203.83,203.63,7.62]
[1756600424995,2.12,203.82,203.63,7.62]
[1756600425394,3.75550425,203.85,203.67,7.62]
[1756600425704,3.32,203.84,203.67,7.62]
[1756600426301,7.07550425,203.84,203.67,7.62]
[1756600427009,329.52,203.93,203.67,7.62]
[1756600427203,3.75550425,203.87,203.71,7.62]
[1756600427901,329.52,203.93,203.74,7.62]
[1756600428200,329.52,203.93,203.73,3.75550425]
[1756600428201,3.75550425,204.02,203.85,3.75550425]
[1756600428405,3.75550425,204.02,203.86,7.62]
[1756600430404,0.85334903,204.06,203.74,5.45597533]
[1756600430405,4.60885328,204.06,203.9,7.62]
[1756600430609,333.53550425,204.11,203.94,7.62]
[1756600430810,0.85322349,204.1,203.94,7.62]
[1756600431809,3.75550425,204.07,203.94,7.62]
[1756600432507,3.75550425,204.03,203.94,7.62]
[1756600432702,4.60872774,204.1,203.94,7.62]
[1756600433005,3.75550425,204.08,203.94,7.62]
[1756600435612,0.85322349,204.1,203.94,7.62]
[1756600436219,0.85322349,204.1,203.97,3.75550425]
[1756600436514,3.75550425,204.19,204.02,7.62]
[1756600436705,0.85287846,204.18,204.02,7.62]
[1756600437310,0.85287846,204.18,203.92,4.04355825]
[1756600437311,3.75550425,204.15,203.95,7.62]
[1756600437513,3.75550425,204.11,203.95,7.62]
[1756600437812,22.45550425,204.11,203.95,7.62]
[1756600440408,3.75550425,204.11,203.95,7.62]
[1756600442806,3.75550425,204.07,203.95,7.62]
[1756600444105,3.75550425,204.08,203.95,7.62]
[1756600444415,3.75550425,204.12,203.96,7.62]
[1756600444614,329.48,204.13,203.96,7.62]
[1756600444815,329.48,204.13,204.0,7.62]
[1756600445313,329.48,204.13,203.97,83.8]
[1756600445314,22.97110823,204.16,204.03,3.75550425]
[1756600445516,22.97110823,204.16,204.04,7.62]
[1756600448515,22.97110823,204.16,204.09,3.75550425]
[1756600448714,22.97110823,204.16,204.1,7.75]
[1756600449714,22.97110823,204.16,204.0,7.75]
[1756600450217,22.97110823,204.16,203.99,3.75550425]
[1756600450218,22.97110823,204.16,204.04,7.75]
[1756600450515,22.97110823,204.16,204.08,7.75]
[1756600450814,22.97110823,204.16,204.12,7.75]
[1756600451408,22.97110823,204.16,204.11,3.75550425]
[1756600452015,22.97110823,204.16,204.1,7.75]
[1756600453012,22.97110823,204.16,204.13,3.75550425]
[1756600453413,22.97110823,204.16,204.13,4.23550425]
[1756600453610,22.97110823,204.16,204.14,7.75]
[1756600453811,22.97110823,204.16,204.04,329.32]
[1756600453812,22.97110823,204.16,204.11,3.75550425]
[1756600454611,22.97110823,204.16,204.12,7.75]
[1756600454815,22.97110823,204.16,204.11,3.75550425]
[1756600455014,22.97110823,204.16,204.12,7.75]
[1756600455215,7.29,204.28,204.15,3.75550425]
[1756600455421,7.29,204.28,204.16,7.75]
[1756600457219,8.14234579,204.28,204.16,7.75]
[1756600460424,7.29,204.28,204.16,7.75]
[1756600462528,139.33,204.28,204.16,7.75]
[1756600462930,139.33,204.28,204.11,3.75550425]
[1756600462931,3.75550425,204.25,204.11,7.75]
[1756600463123,7.29,204.24,204.09,3.75550425]
[1756600463328,7.29,204.24,204.06,19.15]
[1756600463726,3.75550425,204.25,204.06,19.15]
[1756600464528,7.29,204.24,204.06,19.15]
[1756600464726,3.75550425,204.25,204.06,19.15]
[1756600464928,7.29,204.24,204.06,19.15]
[1756600465130,3.75550425,204.25,204.06,19.15]
[1756600465326,7.29,204.24,204.06,11.4]
[1756600465527,7.29,204.24,204.13,3.75550425]
[1756600465726,7.29,204.24,204.14,7.75]
[1756600466630,0.85234579,204.28,204.14,7.75]
[1756600466929,445.41,204.29,204.14,7.75]
[1756600467627,5.50184735,204.48,204.17,3.75550425]
[1756600467828,3.75550425,204.42,204.25,3.75550425]
[1756600468035,88.74187633,204.41,204.25,3.75550425]
[1756600469633,131.56,204.4,204.26,11.50550425]
[1756600470136,8.14187633,204.41,204.26,11.50550425]
[1756600470137,7.29,204.41,204.3,3.75550425]
[1756600470833,7.29,204.41,204.28,3.75550425]
[1756600471033,7.29,204.41,204.29,7.75]
[1756600472331,0.85168869,204.46,204.29,7.75]
[1756600472332,91.28168869,204.46,204.29,7.75]
[1756600472533,8.14168869,204.46,204.29,7.75]
[1756600473234,7.29,204.46,204.32,3.75550425]
[1756600473436,7.29,204.46,204.33,7.75]
[1756600474133,7.29,204.51,204.37,7.75]
[1756600474939,7.29,204.55,204.41,7.75]
[1756600475133,11.04550425,204.55,204.41,7.75]
[1756600475437,11.89674503,204.55,204.41,7.75]
[1756600476237,8.14124078,204.55,204.41,7.75]
[1756600476433,7.29,204.52,204.41,7.75]
[1756600476830,0.85124078,204.55,204.41,7.75]
[1756600477134,7.29,204.57,204.33,339.6]
[1756600477135,7.29,204.57,204.45,7.75]
[1756600480737,11.04550425,204.57,204.45,7.75]
[1756600481634,7.94,204.52,204.38,7.29]
[1756600483831,7.94,204.48,204.38,7.29]
[1756600484232,7.94,204.48,204.33,336.23]
[1756600485933,7.94,204.48,204.34,11.04550425]
[1756600487947,7.94,204.48,204.34,7.29]
[1756600490640,3.75550425,204.47,204.34,7.29]
[1756600490842,7.94,204.46,204.34,7.29]
[1756600491641,26.94,204.5,204.34,7.29]
[1756600492545,7.94,204.48,204.34,7.29]
[1756600492747,7.94,204.44,204.34,7.29]
[1756600493046,7.94,204.44,204.28,7.29]
[1756600495954,7.94,204.4,204.23,3.75550425]
[1756600496154,92.66,204.4,204.24,7.29]
[1756600496951,7.94,204.37,204.24,7.29]
[1756600498654,7.94,204.33,204.18,7.29]
[1756600500257,7.94,204.29,204.11,7.29]
[1756600500463,28.1,204.28,204.11,7.29]
[1756600500659,28.1,204.28,204.07,4.1]
[1756600500660,7.94,204.29,204.15,7.29]
[1756600501260,3.75550425,204.27,204.15,7.29]
[1756600501461,7.94,204.26,204.15,7.29]
[1756600501962,7.94,204.26,204.1,3.75550425]
[1756600502263,7.94,204.26,204.11,7.29]
[1756600502463,7.94,204.22,204.11,7.29]
[1756600506560,7.94,204.2,204.03,7.29]
[1756600506763,3.75550425,204.17,204.03,7.29]
[1756600506961,7.94,204.16,204.03,7.29]
[1756600509368,7.92,204.22,204.03,7.29]
[1756600509569,6.76,204.21,204.03,7.29]
[1756600510161,7.92,204.22,204.07,7.66]
[1756600510466,333.00393197,204.48,204.11,7.66]
[1756600510467,7.92,204.28,204.11,7.66]
[1756600510862,3.75550425,204.25,204.11,7.66]
[1756600511063,7.92,204.24,204.11,7.66]
[1756600511670,7.92,204.32,204.18,3.75550425]
[1756600511863,7.92,204.32,204.19,7.66]
[1756600513670,11.67550425,204.32,204.19,7.66]
[1756600514563,7.92,204.27,204.13,7.66]
[1756600514762,7.92,204.25,204.13,7.66]
[1756600514959,7.92,204.23,204.07,7.66]
[1756600515163,36.2,204.22,204.07,7.66]
[1756600515566,40.74,204.22,204.07,7.66]
[1756600515969,7.92,204.21,204.07,7.66]
[1756600517770,3.75550425,204.2,204.07,7.66]
[1756600517973,3.75550425,204.2,204.0,83.58]
[1756600517974,7.92,204.19,204.01,7.66]
[1756600518273,7.92,204.15,204.01,7.66]
[1756600520872,7.92,204.32,203.97,97.23755228]
[1756600521177,343.78,204.33,203.97,97.23755228]
[1756600521178,7.92,204.23,204.07,7.66]
[1756600521373,128.12,204.22,204.07,7.66]
[1756600522671,128.06,204.21,204.07,7.66]
[1756600522872,7.92,204.23,204.07,7.66]
[1756600523076,125.34,204.21,204.07,7.66]
[1756600523478,7.92,204.23,204.07,7.66]
[1756600523878,8.76,204.22,204.07,7.66]
[1756600524681,7.92,204.21,204.07,7.66]
[1756600528577,7.92,204.19,204.07,7.66]
[1756600528973,7.92,204.19,204.03,11.41550425]
[1756600529175,7.92,204.19,204.04,7.66]
[1756600529781,11.67550425,204.19,204.04,7.66]
[1756600530379,20.5,204.29,204.12,7.66]
[1756600530574,7.92,204.28,204.12,7.66]
[1756600532779,7.92,204.24,204.12,7.66]
[1756600533980,91.24,204.24,204.12,7.66]
[1756600534283,129.72,204.23,204.12,7.66]
[1756600535485,7.92,204.22,204.12,7.66]
[1756600535885,343.9,204.34,204.12,7.66]
[1756600535886,7.92,204.33,204.12,7.66]
[1756600536088,329.18,204.34,204.12,7.66]
[1756600536089,7.92,204.29,204.12,7.66]
[1756600537778,7.92,204.29,204.08,13.39769465]
[1756600537779,7.92,204.29,204.16,7.23]
[1756600537987,105.76,204.29,204.16,7.23]
[1756600539492,7.92,204.29,204.2,7.23]
[1756600539787,336.76,204.34,204.24,7.23]
[1756600540187,329.18,204.34,204.24,7.23]
[1756600540385,129.68,204.38,204.24,7.23]
[1756600540590,7.58,204.39,204.28,7.23]
[1756600542586,129.7,204.42,204.28,7.23]
[1756600543186,129.7,204.42,204.31,3.75550425]
[1756600543492,129.7,204.42,204.32,7.23]
[1756600544692,5.50184735,204.56,204.26,14.62]
[1756600544693,7.58,204.49,204.36,7.23]
[1756600551891,7.58,204.49,204.32,12.9]
[1756600551892,329.04,204.58,204.4,7.23]
[1756600552095,118.27550425,204.57,204.4,7.23]
[1756600554092,118.27550425,204.57,204.43,3.75550425]
[1756600554295,114.52,204.57,204.44,7.23]
[1756600556186,7.58,204.57,204.44,7.23]
[1756600569102,7.58,204.57,204.44,3.75550425]
[1756600569301,7.58,204.57,204.43,3.75550425]
[1756600569599,7.58,204.57,204.44,7.35]
[1756600570397,127.74,204.56,204.44,7.35]
[1756600573298,7.32,204.55,204.44,7.35]
[1756600575703,7.32,204.55,204.4,7.35]
[1756600576302,7.32,204.55,204.44,7.35]
[1756600580805,106.98,204.6,204.48,7.35]
[1756600582510,7.32,204.6,204.48,7.35]
[1756600585609,7.32,204.6,204.52,7.35]
[1756600586810,7.32,204.6,204.48,7.35]
[1756600587215,7.32,204.6,204.43,13.86]
[1756600587216,7.32,204.6,204.44,7.35]
[1756600587921,7.32,204.56,204.42,3.75550425]
[1756600588117,7.32,204.54,204.42,3.75550425]
[1756600588908,7.32,204.54,204.43,7.35]
[1756600590012,7.32,204.54,204.4,3.99769465]
[1756600590215,7.32,204.54,204.39,7.35]
[1756600590618,3.75550425,204.53,204.39,7.35]
[1756600590818,7.32,204.52,204.39,7.35]
[1756600593818,3.75550425,204.51,204.34,11.34769465]
[1756600594031,7.32,204.5,204.34,11.34769465]
[1756600594733,3.75550425,204.51,204.34,11.34769465]
[1756600594928,3.75550425,204.47,204.34,7.35]
[1756600595133,68.06,204.46,204.34,7.35]
[1756600595335,60.74,204.46,204.33,102.31389251]
[1756600596029,7.32,204.45,204.33,102.31389251]
[1756600596231,60.74,204.46,204.33,102.31389251]
[1756600596432,7.32,204.45,204.33,102.31389251]
[1756600597028,7.32,204.42,204.33,102.31389251]
[1756600597231,7.32,204.38,204.26,7.35]
[1756600598634,7.32,204.36,204.26,7.35]
[1756600601139,7.32,204.4,204.26,3.75550425]
[1756600601338,7.32,204.4,204.27,7.71]
[1756600601545,11.07550425,204.4,204.27,7.71]
[1756600602545,7.32,204.4,204.28,7.71]
[1756600603040,328.74,204.43,204.28,7.71]
[1756600603242,328.74,204.43,204.32,7.71]
[1756600605332,7.32,204.42,204.32,7.71]
[1756600605534,328.74,204.43,204.28,11.46550425]
[1756600605934,7.32,204.42,204.28,11.46550425]
[1756600606737,7.32,204.4,204.28,7.71]
[1756600607737,7.32,204.4,204.24,11.46550425]
[1756600607944,7.32,204.4,204.24,7.71]